fUSD/lending_fUSD_20250519
["ID","MTS","AMOUNT","RATE_DAILY","PERIOD"]
[361632731,1747654607695,177.30303458,0.00010945,2]
[361632732,1747654622298,1610.16126466,0.00011,2]
[361632734,1747655002131,165.0,0.00011251,2]
[361632735,1747655061970,300.0,0.000137,5]
[361632737,1747655064065,300.0,0.000138,5]
[361632738,1747655066196,900.0,0.000139,5]
[361632739,1747655073127,828.72,0.0001009,2]
[361632742,1747655265888,300.0,0.000137,5]
[361632743,1747655267986,300.0,0.000138,5]
[361632744,1747655270083,300.0,0.000139,5]
[361632746,1747655371117,-1953.36635727,0.00011982,2]
[361632748,1747655395689,-207.01656029,0.00011747,2]
[361632749,1747655398769,-300.0,0.000117,2]
[361632750,1747655400300,-5.85,0.000117,2]
[361632751,1747655400322,-343.9501342,0.00011747,2]
[361632753,1747655401768,-176.330591,0.00011746,2]
[361632754,1747655405130,-250.0,0.00011746,2]
[361632755,1747655407766,-270.93693571,0.00011746,2]
[361632756,1747655409321,-288.73543293,0.00011746,2]
[361632757,1747655410874,-213.99704036,0.00011746,2]
[361632758,1747655410896,-14.61464584,0.00011747,2]
[361632759,1747655412617,-221.3883138,0.00011747,2]
[361632760,1747655415145,-334.65219525,0.00011747,2]
[361632761,1747655416691,-224.21812125,0.00011747,2]
[361632762,1747655418250,-157.06958621,0.00011747,2]
[361632763,1747655419846,-201.19858681,0.00011747,2]
[361632764,1747655421906,-253.34586606,0.00011747,2]
[361632765,1747655424025,-325.51681753,0.00011747,2]
[361632766,1747655426257,-179.04751958,0.00011747,2]
[361632767,1747655428867,-158.6911181,0.00011747,2]
[361632768,1747655430384,-200.0,0.00011747,2]
[361632776,1747655431569,-962.8861052,0.00011747,2]
[361632777,1747655431632,-5781.93442988,0.00011747,2]
[361632778,1747655431642,-300.0,0.00011947,2]
[361632779,1747655431654,-886.1739,0.00011948,2]
[361632780,1747655431664,-300.0,0.00011981,2]
[361632781,1747655431674,-3456.05274312,0.00011982,2]
[361632782,1747655431832,-4107.86655125,0.00011982,2]
[361633165,1747655436084,1000.0,0.00010903,2]
[361633169,1747655437783,-996.5,0.00011531,2]
[361633170,1747655437793,-558.98249381,0.00011858,2]
[361633377,1747655439938,-441.01750619,0.00011858,2]
[361633379,1747655439947,-14382.71434836,0.00011982,2]
[361633381,1747655439957,-1135.76,0.00011987,2]
[361633383,1747655439966,-200.0,0.00011987,2]
[361633385,1747655439975,-200.0,0.00011988,2]
[361633387,1747655439984,-1108.89,0.00011997,2]
[361633389,1747655439993,-200.0,0.00012008,2]
[361633391,1747655440003,-1000.0,0.00012013,2]
[361633392,1747655440012,-878.38,0.00012027,2]
[361633394,1747655440021,-500.0,0.00012042,2]
[361633396,1747655440030,-2360.38,0.00012042,2]
[361633398,1747655440039,-150.0,0.00012048,2]
[361633400,1747655440049,-159.24,0.00012049,3]
[361633402,1747655440059,-15428.99126788,0.00012049,2]
[361633423,1747655440241,-0.00118529,0.00012049,2]
[361633429,1747655440284,-93219.56754683,0.00012049,2]
[361633431,1747655440294,-557.47,0.00012054,2]
[361633433,1747655440303,-250.0,0.00012068,2]
[361633435,1747655440312,-150.0,0.00012094,2]
[361633437,1747655440322,-367.0,0.00012123,2]
[361633439,1747655440332,-183.06,0.00012136,2]
[361633441,1747655440341,-266.61,0.00012282,2]
[361633443,1747655440350,-828.72,0.00012354,2]
[361633444,1747655440360,-190.68,0.00012363,2]
[361633446,1747655440368,-2577.77,0.00012387,2]
[361633448,1747655440376,-5492.63,0.00012406,2]
[361633450,1747655440385,-1799.56,0.00012434,2]
[361633452,1747655440394,-250.0,0.00012445,2]
[361633454,1747655440403,-1000.0,0.00012447,2]
[361633456,1747655440412,-4000.0,0.00012482,2]
[361633458,1747655440421,-1000.0,0.0001256,2]
[361633460,1747655440430,-1000.0,0.00012562,2]
[361633462,1747655440439,-2751.0,0.00012562,2]
[361633464,1747655440448,-150.0,0.00012581,2]
[361633466,1747655440457,-4209.26278523,0.00012635,2]
[361633468,1747655440466,-3778.13,0.00012655,2]
[361633470,1747655440475,-619.61,0.00012657,2]
[361633472,1747655440484,-653.35,0.00012663,2]
[361633474,1747655440494,-500.0,0.00012665,2]
[361633476,1747655440506,-500.0,0.00012665,2]
[361633478,1747655440515,-500.0,0.00012665,2]
[361633480,1747655440524,-346.36938965,0.00012665,2]
[361633482,1747655440534,-500.0,0.00012665,2]
[361633484,1747655440543,-500.0,0.00012665,2]
[361633486,1747655440552,-500.0,0.00012665,2]
[361633488,1747655440563,-500.0,0.00012665,2]
[361633490,1747655440576,-500.0,0.00012665,2]
[361633492,1747655440585,-500.0,0.00012665,2]
[361633494,1747655440595,-500.0,0.00012665,2]
[361633496,1747655440604,-500.0,0.00012665,2]
[361633498,1747655440613,-500.0,0.00012665,2]
[361633500,1747655440622,-500.0,0.00012665,2]
[361633502,1747655440631,-500.0,0.00012665,2]
[361633504,1747655440640,-500.0,0.00012665,2]
[361633506,1747655440651,-500.0,0.00012665,2]
[361633508,1747655440660,-500.0,0.00012665,2]
[361633510,1747655440669,-500.0,0.00012665,2]
[361633512,1747655440679,-500.0,0.00012665,2]
[361633514,1747655440687,-500.0,0.00012665,2]
[361633516,1747655440696,-408.18322846,0.00012665,2]
[361633518,1747655440705,-500.0,0.00012665,2]
[361633520,1747655440714,-500.0,0.00012665,2]
[361633522,1747655440723,-1608.29,0.00012666,2]
[361633524,1747655440732,-323.15,0.000127,2]
[361633526,1747655440742,-150.0,0.00012731,2]
[361633528,1747655440750,-266.61,0.00012743,2]
[361633530,1747655440760,-4209.26278517,0.00012776,2]
[361633532,1747655440769,-150.0,0.00012854,2]
[361633534,1747655440779,-150.0,0.00012863,2]
[361633536,1747655440788,-200.0,0.0001287,2]
[361633538,1747655440797,-237.37127267,0.000129,2]
[361633540,1747655440807,-4209.26278517,0.00012916,2]
[361633542,1747655440816,-150.0,0.0001292,2]
[361633544,1747655440826,-1680.0,0.00012921,2]
[361633546,1747655440835,-150.0,0.00012932,2]
[361633548,1747655440844,-237.37127242,0.00012934,2]
[361633550,1747655440853,-237.37127242,0.00012969,2]
[361633552,1747655440862,-300.0,0.00013,4]
[361633554,1747655440871,-237.37127242,0.00013003,2]
[361633556,1747655440880,-150.0,0.00013024,2]
[361633558,1747655440889,-237.37127242,0.00013038,2]
[361633560,1747655440899,-4209.26278517,0.00013057,2]
[361633562,1747655440908,-151.0,0.00013061,2]
[361633564,1747655440917,-207.4,0.00013061,2]
[361633566,1747655440925,-668.65185757,0.00013061,2]
[361633568,1747655440934,-1047.41685165,0.00013061,2]
[361633570,1747655440943,-668.65185757,0.00013061,2]
[361633572,1747655440952,-237.37127242,0.00013072,2]
[361633574,1747655440961,-1609.62,0.00013088,2]
[361633576,1747655440970,-922.73,0.00013088,2]
[361633578,1747655440978,-805.14,0.00013088,2]
[361633580,1747655440988,-600.0,0.000131,4]
[361633582,1747655440997,-237.37127242,0.00013107,2]
[361633584,1747655441007,-420.0,0.00013116,2]
[361633586,1747655441016,-500.0,0.00013123,2]
[361633588,1747655441025,-255.0,0.00013132,2]
[361633589,1747655441035,-237.37127242,0.00013141,2]
[361633591,1747655441043,-420.0,0.00013153,2]
[361633593,1747655441053,-150.0,0.00013161,2]
[361633595,1747655441063,-237.37127242,0.00013176,2]
[361633597,1747655441072,-200.0,0.00013185,2]
[361633599,1747655441081,-200.0,0.00013187,2]
[361633601,1747655441090,-1000.0,0.0001319,2]
[361633603,1747655441099,-4209.26278517,0.00013197,2]
[361633605,1747655441109,-150.0,0.000132,2]
[361633607,1747655441118,-900.0,0.000132,4]
[361633609,1747655441127,-266.61,0.00013203,2]
[361633611,1747655441137,-237.37127242,0.0001321,2]
[361633613,1747655441146,-237.37127242,0.00013245,2]
[361633615,1747655441155,-237.37127242,0.00013279,2]
[361633617,1747655441164,-288.11858442,0.00013285,2]
[361633619,1747655441173,-1200.0,0.000133,4]
[361633621,1747655441182,-237.37127242,0.00013314,2]
[361633623,1747655441191,-4209.26278517,0.00013338,2]
[361633625,1747655441200,-237.37127242,0.00013348,2]
[361633627,1747655441208,-237.37127242,0.00013383,2]
[361633629,1747655441217,-1500.0,0.000134,4]
[361633631,1747655441225,-250.0,0.00013409,2]
[361633633,1747655441234,-250.0,0.00013409,2]
[361633635,1747655441243,-237.37127242,0.00013417,2]
[361633637,1747655441252,-572.99350177,0.00013421,2]
[361633639,1747655441261,-237.37127242,0.00013452,2]
[361633641,1747655441270,-4209.26278517,0.00013478,2]
[361633643,1747655441278,-237.37127242,0.00013486,2]
[361633645,1747655441287,-162.4852397,0.00013498,2]
[361633647,1747655441296,-300.0,0.000135,4]
[361633649,1747655441307,-1000.0,0.000135,2]
[361633651,1747655441316,-237.37127242,0.00013521,2]
[361633653,1747655441325,-308.0925325,0.00013531,2]
[361633655,1747655441334,-10946.009963,0.00013539,2]
[361633657,1747655441343,-10846.6914,0.0001355,2]
[361633659,1747655441353,-237.37127242,0.00013555,2]
[361633661,1747655441362,-237.37127242,0.0001359,2]
[361633663,1747655441372,-84250.6698,0.00013598,2]
[361633665,1747655441380,-167.87877207,0.00013598,2]
[361633667,1747655441390,-162.48523969,0.00013599,2]
[361633669,1747655441399,-300.0,0.000136,4]
[361633671,1747655441407,-150.0,0.00013601,2]
[361633673,1747655441416,-1000.0,0.00013607,2]
[361633675,1747655441424,-150.0,0.00013609,2]
[361633677,1747655441432,-150.0,0.00013609,2]
[361633679,1747655441441,-693.3919763,0.00013609,2]
[361633681,1747655441450,-150.0,0.0001361,2]
[361633683,1747655441460,-150.0,0.0001361,2]
[361633685,1747655441469,-1000.0,0.00013612,2]
[361633687,1747655441479,-150.0,0.00013613,2]
[361633689,1747655441488,-150.0,0.00013614,2]
[361633691,1747655441497,-150.0,0.00013617,2]
[361633693,1747655441506,-150.0,0.00013618,2]
[361633695,1747655441515,-4209.26278517,0.00013619,2]
[361633697,1747655441524,-150.0,0.0001362,2]
[361633699,1747655441533,-150.0,0.0001362,2]
[361633701,1747655441542,-150.0,0.00013624,2]
[361633703,1747655441552,-237.37127242,0.00013624,2]
[361633705,1747655441562,-150.0,0.00013632,2]
[361633707,1747655441572,-150.0,0.00013633,2]
[361633709,1747655441583,-150.0,0.00013633,2]
[361633711,1747655441592,-150.0,0.00013635,2]
[361633713,1747655441600,-1000.0,0.00013635,2]
[361633715,1747655441609,-150.0,0.00013638,2]
[361633717,1747655441619,-150.0,0.00013638,2]
[361633719,1747655441628,-150.0,0.00013639,2]
[361633721,1747655441636,-150.0,0.0001364,2]
[361633723,1747655441645,-1000.0,0.00013642,2]
[361633725,1747655441653,-500.0,0.00013644,2]
[361633727,1747655441662,-150.0,0.00013644,2]
[361633729,1747655441671,-150.0,0.00013649,2]
[361633731,1747655441680,-150.0,0.00013654,2]
[361633732,1747655441689,-150.0,0.00013655,2]
[361633734,1747655441699,-150.0,0.00013655,2]
[361633736,1747655441708,-150.0,0.00013658,2]
[361633738,1747655441717,-237.37127242,0.00013659,2]
[361633740,1747655441727,-1000.0,0.0001366,2]
[361633742,1747655441736,-150.0,0.00013663,2]
[361633745,1747655441745,-150.0,0.00013663,2]
[361633747,1747655441755,-266.61,0.00013664,2]
[361633749,1747655441764,-150.0,0.00013666,2]
[361633751,1747655441773,-1000.0,0.00013668,2]
[361633753,1747655441783,-150.0,0.0001367,2]
[361633771,1747655442045,-150.0,0.00013672,2]
[361633773,1747655442055,-150.0,0.00013672,2]
[361633775,1747655442064,-500.0,0.00013673,2]
[361633777,1747655442073,-500.0,0.00013673,2]
[361633779,1747655442083,-632.83391156,0.00013673,2]
[361633781,1747655442092,-500.0,0.00013673,2]
[361633783,1747655442101,-500.0,0.00013673,2]
[361633785,1747655442110,-503.57995522,0.00013673,2]
[361633787,1747655442119,-500.0,0.00013673,2]
[361633789,1747655442129,-500.0,0.00013673,2]
[361633791,1747655442139,-500.0,0.00013673,2]
[361633793,1747655442148,-500.0,0.00013673,2]
[361633795,1747655442157,-150.0,0.00013676,2]
[361633797,1747655442166,-150.0,0.00013676,2]
[361633799,1747655442175,-150.0,0.00013679,2]
[361633801,1747655442184,-150.0,0.00013679,2]
[361633803,1747655442193,-200.0,0.00013682,2]
[361633805,1747655442202,-150.0,0.00013682,2]
[361633807,1747655442211,-152.87013861,0.00013683,2]
[361633809,1747655442220,-150.0,0.00013687,2]
[361633811,1747655442229,-293.45989868,0.00013688,2]
[361633813,1747655442238,-192.27324612,0.00013688,2]
[361633815,1747655442247,-150.0,0.0001369,2]
[361633816,1747655442256,-150.0,0.0001369,2]
[361633817,1747655442265,-864.76119748,0.00013691,2]
[361633818,1747655442275,-150.0,0.00013692,2]
[361633819,1747655442284,-1092.752,0.00013693,2]
[361633820,1747655442295,-150.0,0.00013693,2]
[361633821,1747655442304,-150.0,0.00013693,2]
[361633822,1747655442314,-237.37127242,0.00013693,2]
[361633823,1747655442323,-614.0,0.00013698,2]
[361633824,1747655442332,-151.0,0.00013698,2]
[361633826,1747655442342,-151.0,0.00013698,2]
[361633828,1747655442351,-151.0,0.00013698,2]
[361633830,1747655442360,-151.0,0.00013698,2]
[361633832,1747655442369,-151.0,0.00013698,2]
[361633834,1747655442378,-151.0,0.00013698,2]
[361633836,1747655442388,-884.612986,0.00013698,2]
[361633839,1747655442397,-884.612986,0.00013698,2]
[361633841,1747655442408,-297.478132,0.00013698,2]
[361633843,1747655442417,-297.478132,0.00013698,2]
[361633845,1747655442427,-297.478132,0.00013698,2]
[361633847,1747655442436,-297.478132,0.00013698,2]
[361633849,1747655442446,-420.0,0.00013698,2]
[361633852,1747655442455,-151.0,0.00013698,2]
[361633854,1747655442465,-151.0,0.00013698,2]
[361633856,1747655442474,-205.677441,0.00013698,2]
[361633859,1747655442483,-205.677441,0.00013698,2]
[361633862,1747655442493,-205.677441,0.00013698,2]
[361633864,1747655442502,-151.0,0.00013698,2]
[361633866,1747655442511,-151.0,0.00013698,2]
[361633868,1747655442521,-151.0,0.00013698,2]
[361633869,1747655442531,-151.0,0.00013698,2]
[361633871,1747655442540,-151.0,0.00013698,2]
[361633873,1747655442549,-205.677441,0.00013698,2]
[361633875,1747655442559,-205.677441,0.00013698,2]
[361633877,1747655442569,-205.677441,0.00013698,2]
[361633879,1747655442582,-151.0,0.00013698,2]
[361633881,1747655442591,-151.0,0.00013698,2]
[361633883,1747655442600,-151.0,0.00013698,2]
[361633885,1747655442609,-151.0,0.00013698,2]
[361633886,1747655442619,-151.0,0.00013698,2]
[361633887,1747655442628,-151.0,0.00013698,2]
[361633888,1747655442637,-420.0,0.00013698,2]
[361633889,1747655442647,-400.0,0.00013698,2]
[361633890,1747655442657,-400.0,0.00013698,2]
[361633891,1747655442667,-400.83453958,0.00013698,2]
[361633892,1747655442676,-400.0,0.00013698,2]
[361633893,1747655442685,-400.0,0.00013698,2]
[361633894,1747655442695,-400.0,0.00013698,2]
[361633895,1747655442704,-400.0,0.00013698,2]
[361633896,1747655442714,-402.62086972,0.00013698,2]
[361633897,1747655442723,-400.0,0.00013698,2]
[361633898,1747655442733,-160.99740714,0.00013698,2]
[361633899,1747655442743,-400.0,0.00013698,2]
[361633900,1747655442754,-182.835323,0.00013698,2]
[361633901,1747655442764,-420.0,0.00013698,2]
[361633902,1747655442773,-400.0,0.00013698,2]
[361633903,1747655442782,-541.62377004,0.00013698,2]
[361633904,1747655442792,-406.25377013,0.00013698,2]
[361633905,1747655442802,-400.0,0.00013698,2]
[361633906,1747655442812,-401.33069912,0.00013698,2]
[361633907,1747655442821,-402.78156862,0.00013698,2]
[361633908,1747655442830,-400.0,0.00013698,2]
[361633909,1747655442839,-400.0,0.00013698,2]
[361633910,1747655442848,-151.959101,0.00013698,2]
[361633911,1747655442858,-400.0,0.00013698,2]
[361633912,1747655442867,-400.0,0.00013698,2]
[361633913,1747655442876,-400.0,0.00013698,2]
[361633914,1747655442885,-400.97934887,0.00013698,2]
[361633915,1747655442895,-400.0,0.00013698,2]
[361633916,1747655442904,-400.0,0.00013698,2]
[361633917,1747655442915,-400.0,0.00013698,2]
[361633918,1747655442924,-420.0,0.00013698,2]
[361633919,1747655442934,-400.0,0.00013698,2]
[361633920,1747655442944,-400.0,0.00013698,2]
[361633921,1747655442953,-420.0,0.00013698,2]
[361633922,1747655442963,-401.36718605,0.00013698,2]
[361633923,1747655442973,-420.0,0.00013698,2]
[361633924,1747655442982,-420.0,0.00013698,2]
[361633925,1747655442991,-400.0,0.00013698,2]
[361633927,1747655443000,-151.0,0.00013698,2]
[361633928,1747655443009,-386.21417887,0.00013698,2]
[361633929,1747655443019,-400.0,0.00013698,2]
[361633930,1747655443028,-700.6,0.00013698,2]
[361633931,1747655443036,-402.22659791,0.00013698,2]
[361633932,1747655443046,-400.0,0.00013698,2]
[361633933,1747655443056,-1010.59104096,0.00013698,2]
[361633934,1747655443065,-420.0,0.00013698,2]
[361633935,1747655443074,-420.0,0.00013698,2]
[361633937,1747655443083,-400.0,0.00013698,2]
[361633938,1747655443092,-420.0,0.00013698,2]
[361633939,1747655443103,-400.0,0.00013698,2]
[361633940,1747655443112,-400.0,0.00013698,2]
[361633941,1747655443122,-360.0,0.00013698,2]
[361633942,1747655443131,-420.0,0.00013698,2]
[361633944,1747655443140,-420.0,0.00013698,2]
[361633946,1747655443148,-592.92,0.00013698,2]
[361633948,1747655443158,-400.0,0.00013698,2]
[361633950,1747655443167,-400.0,0.00013698,2]
[361633952,1747655443176,-420.0,0.00013698,2]
[361633954,1747655443185,-400.46386868,0.00013698,2]
[361633956,1747655443194,-432.54,0.00013698,2]
[361633958,1747655443203,-326.4459924,0.00013698,2]
[361633960,1747655443212,-401.45480647,0.00013698,2]
[361633962,1747655443221,-485.53,0.00013698,2]
[361633964,1747655443231,-504.52907355,0.00013698,2]
[361633966,1747655443240,-400.0,0.00013698,2]
[361633968,1747655443249,-420.49971916,0.00013698,2]
[361633970,1747655443258,-401.8395468,0.00013698,2]
[361633972,1747655443267,-420.0,0.00013698,2]
[361633974,1747655443276,-401.4330044,0.00013698,2]
[361633977,1747655443285,-420.0,0.00013698,2]
[361633979,1747655443294,-400.0,0.00013698,2]
[361633981,1747655443303,-400.0,0.00013698,2]
[361633984,1747655443313,-420.0,0.00013698,2]
[361633987,1747655443322,-502.65891452,0.00013698,2]
[361633990,1747655443331,-400.0,0.00013698,2]
[361633993,1747655443340,-420.0,0.00013698,2]
[361633996,1747655443349,-420.0,0.00013698,2]
[361633999,1747655443359,-317.36135884,0.00013698,2]
[361634001,1747655443367,-420.0,0.00013698,2]
[361634003,1747655443376,-400.18494379,0.00013698,2]
[361634005,1747655443385,-399.4780063,0.00013698,2]
[361634007,1747655443395,-505.1771216,0.00013698,2]
[361634009,1747655443404,-420.0,0.00013698,2]
[361634011,1747655443413,-400.0,0.00013698,2]
[361634013,1747655443422,-400.0,0.00013698,2]
[361634015,1747655443431,-420.0,0.00013698,2]
[361634017,1747655443440,-420.0,0.00013698,2]
[361634019,1747655443450,-400.0,0.00013698,2]
[361634021,1747655443459,-151.0,0.00013698,2]
[361634023,1747655443467,-420.0,0.00013698,2]
[361634025,1747655443476,-151.0,0.00013698,2]
[361634027,1747655443485,-479.64,0.00013698,2]
[361634029,1747655443495,-151.0,0.00013698,2]
[361634031,1747655443504,-400.0,0.00013698,2]
[361634033,1747655443514,-151.0,0.00013698,2]
[361634035,1747655443526,-420.0,0.00013698,2]
[361634037,1747655443537,-420.0,0.00013698,2]
[361634039,1747655443547,-420.0,0.00013698,2]
[361634041,1747655443556,-420.0,0.00013698,2]
[361634043,1747655443565,-420.0,0.00013698,2]
[361634045,1747655443578,-420.0,0.00013698,2]
[361634047,1747655443587,-685.7,0.00013698,2]
[361634049,1747655443597,-420.0,0.00013698,2]
[361634051,1747655443607,-420.0,0.00013698,2]
[361634052,1747655443617,-420.0,0.00013698,2]
[361634054,1747655443627,-468.17,0.00013698,2]
[361634056,1747655443636,-400.0,0.00013698,2]
[361634058,1747655443646,-509.12,0.00013698,2]
[361634060,1747655443656,-400.0,0.00013698,2]
[361634062,1747655443666,-420.0,0.00013698,2]
[361634064,1747655443675,-302.47264962,0.00013698,2]
[361634066,1747655443684,-420.0,0.00013698,2]
[361634068,1747655443693,-420.0,0.00013698,2]
[361634070,1747655443703,-400.0,0.00013698,2]
[361634072,1747655443711,-420.0,0.00013698,2]
[361634074,1747655443721,-403.8617293,0.00013698,2]
[361634076,1747655443730,-151.0,0.00013698,2]
[361634078,1747655443739,-420.0,0.00013698,2]
[361634080,1747655443748,-420.0,0.00013698,2]
[361634082,1747655443757,-151.0,0.00013698,2]
[361634084,1747655443767,-151.0,0.00013698,2]
[361634086,1747655443776,-151.0,0.00013698,2]
[361634088,1747655443786,-420.0,0.00013698,2]
[361634090,1747655443795,-420.0,0.00013698,2]
[361634092,1747655443805,-521.34,0.00013698,2]
[361634094,1747655443814,-420.0,0.00013698,2]
[361634096,1747655443824,-400.0,0.00013698,2]
[361634098,1747655443832,-420.0,0.00013698,2]
[361634100,1747655443842,-420.0,0.00013698,2]
[361634102,1747655443851,-400.0,0.00013698,2]
[361634104,1747655443860,-408.7651508,0.00013698,2]
[361634106,1747655443869,-420.0,0.00013698,2]
[361634108,1747655443879,-420.0,0.00013698,2]
[361634110,1747655443887,-243.9952537,0.00013698,2]
[361634112,1747655443897,-420.0,0.00013698,2]
[361634114,1747655443906,-420.0,0.00013698,2]
[361634116,1747655443915,-151.0,0.00013698,2]
[361634118,1747655443924,-151.0,0.00013698,2]
[361634120,1747655443933,-636.08,0.00013698,2]
[361634122,1747655443943,-477.04993413,0.00013698,2]
[361634124,1747655443952,-420.0,0.00013698,2]
[361634126,1747655443961,-400.0,0.00013698,2]
[361634128,1747655443971,-420.0,0.00013698,2]
[361634130,1747655443981,-420.0,0.00013698,2]
[361634132,1747655443989,-474.88,0.00013698,2]
[361634134,1747655443998,-431.05390832,0.00013698,2]
[361634136,1747655444007,-420.0,0.00013698,2]
[361634138,1747655444016,-420.0,0.00013698,2]
[361634140,1747655444025,-420.0,0.00013698,2]
[361634142,1747655444034,-420.0,0.00013698,2]
[361634144,1747655444044,-151.0,0.00013698,2]
[361634146,1747655444053,-151.0,0.00013698,2]
[361634148,1747655444062,-420.0,0.00013698,2]
[361634150,1747655444071,-420.0,0.00013698,2]
[361634152,1747655444081,-150.0,0.00013698,2]
[361634154,1747655444092,-540.50663043,0.00013698,2]
[361634156,1747655444102,-151.0,0.00013698,2]
[361634158,1747655444111,-2891.685777,0.00013698,2]
[361634160,1747655444120,-151.0,0.00013698,2]
[361634162,1747655444129,-569.62,0.00013698,2]
[361634164,1747655444138,-420.0,0.00013698,2]
[361634166,1747655444147,-151.0,0.00013698,2]
[361634168,1747655444156,-151.0,0.00013698,2]
[361634170,1747655444165,-420.0,0.00013698,2]
[361634172,1747655444174,-496.31,0.00013698,2]
[361634174,1747655444183,-400.0,0.00013698,2]
[361634176,1747655444193,-428.16,0.00013698,2]
[361634178,1747655444202,-400.0,0.00013698,2]
[361634180,1747655444211,-400.0,0.00013698,2]
[361634182,1747655444220,-400.0,0.00013698,2]
[361634184,1747655444229,-400.0,0.00013698,2]
[361634186,1747655444239,-420.0,0.00013698,2]
[361634188,1747655444249,-400.0,0.00013698,2]
[361634190,1747655444258,-420.0,0.00013698,2]
[361634191,1747655444268,-151.0,0.00013698,2]
[361634192,1747655444277,-420.0,0.00013698,2]
[361634193,1747655444286,-402.00073836,0.00013698,2]
[361634194,1747655444295,-400.0,0.00013698,2]
[361634195,1747655444304,-420.0,0.00013698,2]
[361634196,1747655444314,-151.0,0.00013698,2]
[361634197,1747655444323,-420.0,0.00013698,2]
[361634198,1747655444332,-420.0,0.00013698,2]
[361634199,1747655444341,-420.0,0.00013698,2]
[361634200,1747655444350,-409.83,0.00013698,2]
[361634202,1747655444359,-151.0,0.00013698,2]
[361634204,1747655444370,-402.74553713,0.00013698,2]
[361634206,1747655444379,-420.0,0.00013698,2]
[361634208,1747655444388,-420.0,0.00013698,2]
[361634210,1747655444397,-691.28,0.00013698,2]
[361634212,1747655444406,-420.0,0.00013698,2]
[361634214,1747655444415,-151.0,0.00013698,2]
[361634216,1747655444426,-420.0,0.00013698,2]
[361634218,1747655444436,-946.32,0.00013698,2]
[361634220,1747655444445,-573.05,0.00013698,2]
[361634222,1747655444454,-420.0,0.00013698,2]
[361634224,1747655444463,-420.0,0.00013698,2]
[361634226,1747655444472,-166.379656,0.00013698,2]
[361634228,1747655444480,-151.0,0.00013698,2]
[361634230,1747655444490,-596.82,0.00013698,2]
[361634232,1747655444499,-718.96,0.00013698,2]
[361634234,1747655444508,-400.0,0.00013698,2]
[361634236,1747655444517,-420.0,0.00013698,2]
[361634238,1747655444526,-420.0,0.00013698,2]
[361634240,1747655444535,-420.0,0.00013698,2]
[361634242,1747655444545,-151.0,0.00013698,2]
[361634244,1747655444554,-151.0,0.00013698,2]
[361634246,1747655444563,-420.0,0.00013698,2]
[361634248,1747655444574,-400.0,0.00013698,2]
[361634250,1747655444585,-151.0,0.00013698,2]
[361634252,1747655444594,-427.12,0.00013698,2]
[361634254,1747655444603,-151.0,0.00013698,2]
[361634256,1747655444612,-400.0,0.00013698,2]
[361634258,1747655444622,-410.26014753,0.00013698,2]
[361634260,1747655444631,-400.0,0.00013698,2]
[361634262,1747655444639,-400.0,0.00013698,2]
[361634264,1747655444648,-400.0,0.00013698,2]
[361634266,1747655444658,-518.78,0.00013698,2]